{"text_format":"3","workbook":"xlsx","n_sheets":11,"sheets":["Read Me FIRST","1.1Tender Cover Sheet","1.1.1 Preamble","1.1.2 Summary","1.1.3 Bill No 1- ","1.1.4 Bill No 2","1.1.5 Bill - No1 ","1.1.6 Bill - No2","1.1.7 Bill - No 3","1.1.8 -Dayworks Rates","1.1.9 CPA Formulae"],"not_rendered":{"images":1,"external_links":4,"defined_names":43},"read":"whole","date_system":"1900"}

{"sheet":"Read Me FIRST","index":0,"n_rows":33,"n_cols":3,"rows_kept":33,"merged":[[8,1,8,2],[10,1,10,2],[12,1,12,2],[30,1,30,2]]}
["Project:",null,"NATIONAL TRANSMISSION COMPANY OF SOUTH AFRICA"]
["Enquiry No.",null,{"$f":"'1.1Tender Cover Sheet'!C19","v":0}]
["Project  Name:",null,"Provision for Inspection,Maintenance, Supply, delivery, and installation of water tanks, water filters & water pumps etc. at various substations in central grid as an when Required for the period of 36 months"]
["Tenderer's Name:",null,{"$f":"'1.1Tender Cover Sheet'!C23","v":0}]
[]
[]
["READ ME"]
[]
[null,"Read these notes BEFORE you commence input or make any changes to this workbook"]
[]
[null,"The Tenderer must provide a clear indication on the Cover Sheet as to whether the offer is \"main\" or \"alternative\" (and if there are several alternatives, to number them). There must be a separate Excel file for each offer if applicable"]
[]
[null,"NOTE:  ALL CALCULATIONS ARE THE RESPONSIBILITY OF THE TENDERER, AND MUST BE CHECKED THOROUGHLY.  ANY DISCREPANCY FOUND IN THE CALCULATIONS IN THIS WORKBOOK MUST BE BROUGHT TO THE ATTENTION OF ESKOM, THROUGH THE DESIGNATED BUYER!"]
[]
[]
[1,"This workbook contains the following sheets:"]
[null,"Read Me","This sheet provides an overview to the Tenderer of the content and role of the sheets making up the Price Schedules.  It will not form part of the tender or contract."]
[null,"1.1 Tender Cover Sheet","This is the cover sheet for Section 5.1 and provides the total tender price.  It is also the source of the package name, tenderer name etc for the other sheets."]
[null,"1.1.1 Preamble","This sheet provides general guidelines for this section."]
[null,"1.1.2 Summary","This is where the total amounts of all the trades are shown"]
[null,"Section No 1","Preliminaries and Generals"]
[null,"1.1.3 Bill No 1 ","Fixed Preliminaries and Generals "]
[null,"1.1.4 Bill No 2","Time Related Preliminaries and Generals "]
[null,"Section No 2","Measured Works"]
[null,"1.1.5 Bill No 1 ","Inspection of existing borehole Infrastructure "]
[null,"1.1.6 Bill No 2","Drilling of New Boreholes and all associted works"]
[null,"1.1.7 Bill No 3","Water Reticulation System"]
[null,"1.1.8 Dayworks Rates","Dayworks Rates"]
[null,"1.1.9 CPA Formulae","This is where the tenderer selects the CPA Formulae"]
[2,"Conventions used in this workbook"]
[null,"The following conventions have been used in this workbook to facilitate its accurate use:"]
[null,"Red","This GREEN shading is used for cells where DATA ENTRY is required from the Tenderer.  The Tenderer must complete the information in these GREEN shaded cells."]
[null,null,"PLEASE REFRAIN from tampering with ANY other cells contained in this workbook as it may affect Eskom's standard formulae and lead to data integrity issues."]

{"sheet":"1.1Tender Cover Sheet","index":1,"n_rows":48,"n_cols":4,"rows_kept":48,"merged":[[1,1,1,2]]}
[]
[null,"ESKOM NATIONAL TRANSMISION COMPANY SOUTH AFRICA - CENTRAL GRID"]
{"$rows_empty":12}
[null,"PRICING INFORMATION"]
[]
[null,"TENDER INFORMATION"]
[]
[null,"ENQUIRY No."]
[]
[null,"NAME OF PROJECT:",{"$f":"'Read Me FIRST'!C3","v":"Provision for Inspection,Maintenance, Supply, delivery, and installation of water tanks, water filters & water pumps etc. at various substations in central grid as an when Required for the period of 36 months"}]
[]
[null,"TENDERER’S NAME:  "]
[]
[]
[null,"1.1 Price Schedules "]
[]
[]
[null,"THE PRICE:  IN ZAR",{"$f":"'1.1.2 Summary'!E22","v":{"v":0,"d":"  0  RAND"}}]
[null,"(excluding VAT)"]
[null,"RAND VALUE IN WORDS"]
[]
[]
[]
[]
[null,"DATE :"]
[]
[]
[]
[null,"FULL NAMES OF SIGNATORY:"]
[]
[]
[]
[null,"DESIGNATION OF SIGNATORY:"]
[]
[]
[null,"SIGNATURE :"]
[{"$nulls":3}," "]

{"sheet":"1.1.1 Preamble","index":2,"n_rows":10,"n_cols":4,"rows_kept":10,"merged":[[7,1,7,2],[8,1,8,2],[9,1,9,2],[10,1,10,2],[11,1,11,2]]}
["Project:",null,{"$f":"'1.1Tender Cover Sheet'!B2:C2","v":"ESKOM NATIONAL TRANSMISION COMPANY SOUTH AFRICA - CENTRAL GRID"},0]
["Enquiry No.",null,{"$f":"'1.1Tender Cover Sheet'!C19","v":0}]
["Project Name:",null,{"$f":"'Read Me FIRST'!C3","v":"Provision for Inspection,Maintenance, Supply, delivery, and installation of water tanks, water filters & water pumps etc. at various substations in central grid as an when Required for the period of 36 months"}]
["Tenderer's Name:",null,{"$f":"'1.1Tender Cover Sheet'!C23","v":0}]
[]
["1.1.1 PREAMBLE TO PRICE SCHEDULE "]
[]
[1,"The Provisional Price Schedule provides the basis of valuation of all the work activities and inputs and information for general contract progress monitoring. "]
[2,"The amount due at each application for payment date is based on activities and/or milestones completed as indicated on the Price Schedule/Bills of Quantities. The Tenderer must provide all necessary information which is required to determine amounts due in respect of each application for payment relative to the activities."]
[3,"The total of the prices must include for all direct and indirect costs, overheads, profits, on costs, risks, liabilities, obligations, etc. relative to the contract."]

{"sheet":"1.1.2 Summary","index":3,"n_rows":22,"n_cols":5,"rows_kept":22,"merged":[[21,1,21,3]]}
[null,"Project:",{"$f":"'1.1.1 Preamble'!C1","v":"ESKOM NATIONAL TRANSMISION COMPANY SOUTH AFRICA - CENTRAL GRID"}]
[null,"Enquiry No.",{"$f":"'1.1Tender Cover Sheet'!C19","v":0}]
[null,"Project  Name:",{"$f":"'Read Me FIRST'!C3","v":"Provision for Inspection,Maintenance, Supply, delivery, and installation of water tanks, water filters & water pumps etc. at various substations in central grid as an when Required for the period of 36 months"}]
[null,"Tenderer's Name:",{"$f":"'1.1Tender Cover Sheet'!C23","v":0}]
[]
[]
[null,"ITEM / BILL NO.","SECTION","UNIT","AMOUNT"]
[]
[null,null,{"$f":"C3","v":"Provision for Inspection,Maintenance, Supply, delivery, and installation of water tanks, water filters & water pumps etc. at various substations in central grid as an when Required for the period of 36 months"},null,{"$f":"SUM(E10:E21)","v":0}]
[]
[null,{"v":1.1,"d":"1.10"},"Section No 1 : Preliminaries and Genarals "]
[]
[null,null,"Bill No 1  : Fixed Preliminaries and Generals","Sum",{"$f":"'1.1.3 Bill No 1- '!I18","v":0}]
[null,null,"Bill No 2  : Time Related Preliminaries and Generals","Sum",{"$f":"'1.1.4 Bill No 2'!I20","v":0}]
[]
[null,{"v":1.2,"d":"1.20"},"Section No 2 : Measured Works"]
[]
[null,null,"Bill No 1 : Inspection of existing borehole Infrastructure ","Sum",{"$f":"'1.1.5 Bill - No1 '!H17","v":0}]
[null,null,"Bill No 2 : Drilling of New Boreholes and all associted works","Sum",{"$f":"'1.1.6 Bill - No2'!H20","v":0}]
[null,null,"Bill No 3 : Water Reticulation System","Sum",{"$f":"'1.1.7 Bill - No 3'!H13","v":0}]
[]
[null,"TOTAL AMOUNT",null,null,{"$f":"E9","v":0}]

{"sheet":"1.1.3 Bill No 1- ","index":4,"n_rows":18,"n_cols":9,"rows_kept":18,"merged":[[0,1,0,8],[1,1,1,8]]}
[null,"NATIONAL TRANSMISSION COMPANY OF SOUTH AFRICA"]
[]
[null,"PAY Reff","ITEM NO.","DESCRIPTION","No Off","UNIT","ESTIMATED QUANTITY","RATE ","AMOUNT"]
[{"$nulls":3},"NOTE: This scope is as an when required - Scope will be based on TO as and when the Project Manager See the need"]
[]
[null,null,1.1,"Section No 1 : Preliminaries and Generals"]
[]
[null,null,"1.1.1","Bill No 1 : Fixed Preliminaries and Generals"]
[]
[{"$nulls":3},"a) Site Establishment (Including temporary facing etc)",6,"Sum",{"v":1,"d":"1.00"},null,{"$f":"H10*G10*E10","v":0}]
[]
[{"$nulls":3},"b) Compliance with Eskom SHE, medicals, PPE etc(Once off) ",null,"Sum",{"v":1,"d":"1.00"},null,{"$f":"H12*G12","v":0}]
[]
[{"$nulls":3},"c) Tools and Equipment -(Once Off)",null,"Sum",{"v":1,"d":"1.00"},null,{"$f":"H14*G14","v":0}]
[]
[{"$nulls":3},"c) Site Disestablishment",6,"Sum",{"v":1,"d":"1.00"},null,{"$f":"H16*G16*E16","v":0}]
[]
[{"$nulls":7},"TOTAL",{"$f":"SUM(I5:I16)","v":0}]

{"sheet":"1.1.4 Bill No 2","index":5,"n_rows":20,"n_cols":9,"rows_kept":20,"merged":[[0,1,0,8],[1,1,1,8]]}
[null,"NATIONAL TRANSMISSION COMPANY OF SOUTH AFRICA"]
[]
[null,"PAY Reff","ITEM NO.","DESCRIPTION","No Off","UNIT","ESTIMATED QUANTITY","RATE ","AMOUNT"]
[{"$nulls":3},"NOTE: This scope is as an when required - Scope will be based on TO as and when the Project Manager See the need"]
[]
[null,null,1.1,"Section No 1 : Preliminaries and Generals"]
[]
[null,null,"1.1.2","Bill No 2 :Time Related Preliminaries and Gnerals"]
[]
[{"$nulls":3},"a) Supervision for the duration of scope (Including Registered Engineer and Authorised Person ) - Contractor to provide breakdown",null,"Month",{"v":6,"d":"6.00"},null,{"$f":"H10*G10","v":0}]
[]
[{"$nulls":3},"b) Transportation (Employees - Quantum etc.)",null,"km",{"$f":"575*6","v":{"v":3450,"d":"3,450.00"}},null,0]
[]
[{"$nulls":3},"c) Single Cab Bakie ",null,"km",{"$f":"575*6","v":{"v":3450,"d":"3,450.00"}},null,0]
[]
[{"$nulls":3},"d) Accommodation (If it will be required) (Contractor to provide detail Labour histograme for the team that will require accommodation)",null,"Month",{"v":6,"d":"6.00"},null,0]
[]
[{"$nulls":3},"e) Plant and Equipment (All Plant Cranes etc deemed required to excecute the scope) - Contractor to Provide Breakdown",null,"Month",{"v":6,"d":"6.00"},null,{"$f":"H18*G18","v":0}]
[]
[{"$nulls":7},"TOTAL",{"$f":"SUM(I8:I19)","v":{"v":0,"d":"R0.00"}}]

{"sheet":"1.1.5 Bill - No1 ","index":6,"n_rows":17,"n_cols":8,"rows_kept":17,"merged":[[0,1,0,7],[1,1,1,7]]}
[null,"NATIONAL TRANSMISSION COMPANY OF SOUTH AFRICA"]
[]
[null,"PAY Reff","ITEM NO.","DESCRIPTION","UNIT","ESTIMATED QUANTITY","RATE ","AMOUNT"]
[{"$nulls":3},"NOTE: This scope is as an when required - Scope will be based on TO as and when the Project Manager See the need"]
[]
[null,null,1.2,"Section No 2 : Measured Works"]
[]
[null,null,"1.2.1","Bill No 1 : Inspection of existing borehole Infrastructure "]
[{"$nulls":3},"a) Inspection of the condition of existing borehole infrastructures, wall stability determine depth, borehole yield test and water quality, all plumbich pipe checks for leaking, main lines, Water Tanks, Pumps, motors etc. to be in line with SANS standards ","No",{"v":6,"d":"6.00"},null,{"$f":"G9*F9","v":0}]
[]
[{"$nulls":3},"b) Provisional Sum for fixing of defects or any other scope not in the BOQ or Scope of Work, Defects based on recommadation upon completion of Inspection (Material will be based on actual cost plut 7% fee to cover overheads and Profit and labour or per Dayworks rates provided by contractor and agreed with the Employer with no additional fee)","P.Sum",{"v":1,"d":"1.00"},null,{"$f":"G11*F11","v":0}]
[]
[{"$nulls":3},"c) Empty and  Cleaing of Water Tanks with suitable chemicals so water stored can suitable for drinkings - 10000l  Maximum capacity","No",{"v":6,"d":"6.00"},null,{"$f":"G13*F13","v":0}]
[]
[{"$nulls":3},"d) Final test of water to make that is suitable for Consumption and use","No",{"v":6,"d":"6.00"},null,{"$f":"G15*F15","v":0}]
[]
[{"$nulls":6},"TOTAL",{"$f":"SUM(H7:H15)","v":0}]

{"sheet":"1.1.6 Bill - No2","index":7,"n_rows":20,"n_cols":8,"rows_kept":20,"merged":[[0,1,0,7],[1,1,1,7]]}
[null,"NATIONAL TRANSMISSION COMPANY OF SOUTH AFRICA"]
[]
[null,"PAY Reff","ITEM NO.","DESCRIPTION","UNIT","ESTIMATED QUANTITY","RATE ","AMOUNT"]
[{"$nulls":3},"NOTE: This scope is as an when required - Scope will be based on TO as and when the Project Manager See the need"]
[]
[null,null,1.2,"Section No 2 : Measured Works"]
[]
[null,null,"1.2.2","Bill No 2 : Drilling of New Boreholes and all associted works"]
[]
[{"$nulls":3},"a) Borehole Construction/Drilling (Including all associted excavation,, backfilling, compaction Pipes, Drilling, welding, Pumps motors etc) - maximum 30m (Rate to be inclusive of all plant, Borehole casing Temprary and permanent,  tools equipment, materials etc, HDPE pipes, Motor cables etc)","Each",{"v":6,"d":"6.00"},null,{"$f":"G10*F10","v":0}]
[]
[{"$nulls":3},"b) Borehole Driling for additional meters over above minimum standard of 30m","Meters",{"$f":"5*6","v":{"v":30,"d":"30.00"}},null,{"$f":"G12*F12","v":0}]
[]
[{"$nulls":3},"c) Supply, Delivery and Installation of Combo Special - Water Tank 2500liter,. Rate  to Include 0.75 Boster Pump with Controller, Pump Cover, Suctin Hose Kit 25mm, Float Valve Kit, , plus 10 years tank warranty","Each",{"v":12,"d":"12.00"},null,{"$f":"G14*F14","v":0}]
[]
[{"$nulls":3},"d) Supply, Delivery and Installation of Steel Water Tank Stand with pallet to cover 140mm x 1450mm)  (Manufacture with hight standrd of steel )to Support 25000 liter tank - 1.5m high ) - Rate to include associated earthworks etc required to install the water stand","Each",{"v":6,"d":"6.00"},null,{"$f":"G16*F16","v":0}]
[]
[{"$nulls":3},"e) Water filtration System to all structures/Buildings offices/Kitchen etc.  with an Ultraviolet Disinfection system - Flow rate : +/- 2700 liters per hour, minimum of 2 bar incoming pressure, maximum of 6 bar, uses 2 x 5 micron PP/ Sediment 20 BB Filters and 1 x 20 BB Carbon block filter","Each",{"v":6,"d":"6.00"},null,{"$f":"G18*F18","v":0}]
[]
[{"$nulls":6},"TOTAL",{"$f":"SUM(H7:H19)","v":{"v":0,"d":"R0.00"}}]

{"sheet":"1.1.7 Bill - No 3","index":8,"n_rows":13,"n_cols":8,"rows_kept":13,"merged":[[0,1,0,7],[1,1,1,7]]}
[null,"NATIONAL TRANSMISSION COMPANY OF SOUTH AFRICA"]
[]
[null,"PAY Reff","ITEM NO.","DESCRIPTION","UNIT","ESTIMATED QUANTITY","RATE ","AMOUNT"]
[{"$nulls":3},"NOTE: This scope is as an when required - Scope will be based on TO as and when the Project Manager See the need"]
[]
[null,null,1.2,"Section No 2 : Measured Works"]
[null,null,"1.2.3","Bill No 3 : Water Reticulation System"]
[]
[{"$nulls":3},"a) Provisional Sum for the Contractor to design and construct a Water Reticulation sytems , to cover for all uPVC Pipes , with associated fittings, couplings, 45 dgree bends, 90 degree bends etc. etc.  , Assumed pipe diameter is 63mm class 12 contractor to advice if the assumed pipe sizes is suitable or provide altertive pipe sizes on the proposal (scope to include any demolition of driveway etc as may deemed required) Cost to be based on actual cost plust 7% fee if rates exist wihin the Dayworks rates it will be used with no additional % fee charge","P. Sum",{"v":1,"d":"1.00"},null,{"$f":"G9*F9","v":0}]
[]
[{"$nulls":3},"b) Valve chamber size 1450 x 800 x 800mm deep internally with 25MPas concrete base 100mm thick including reinforced concrete walls 200mm thick and 12 No. 100mm thick reinforced concrete cover slab, including all necessary excavation, backfilling, formwork, Ref 617 mesh reinforcement, lifting hooks, pipe support channels, thermoplastic covers, etc.","Each",{"v":6,"d":"6.00"},null,{"$f":"G11*F11","v":0}]
[]
[{"$nulls":6},"TOTAL",{"$f":"SUM(H7:H12)","v":{"v":0,"d":"R0.00"}}]

{"sheet":"1.1.8 -Dayworks Rates","index":9,"n_rows":7,"n_cols":4,"rows_kept":7}
[]
["Item","Designation","Unit","Rate"]
[]
[1,"Supervisor","Hour"]
[{"$f":"A4+1","v":2},"General Worker","Hour"]
[{"$f":"A5+1","v":3},"Artisan - Skilled","Hour"]
[4,"Artisan -Semi-Skilled","Hour"]

{"sheet":"1.1.9 CPA Formulae","index":10,"n_rows":69,"n_cols":11,"rows_kept":69,"merged":[[12,2,12,11],[60,2,60,7],[60,8,60,9]]}
[null,"ESKOM TRANSMISSION - CENTRAL GRID"]
[null,"ENQUIRY No.",null,null,{"$f":"'1.1Tender Cover Sheet'!C19","v":0}]
[null,"TENDERER NAME:",null,null,{"$f":"'1.1Tender Cover Sheet'!C23","v":0}]
[null,"NAME OF PROJECT:",null,null,{"$f":"'1.1Tender Cover Sheet'!C21","v":"Provision for Inspection,Maintenance, Supply, delivery, and installation of water tanks, water filters & water pumps etc. at various substations in central grid as an when Required for the period of 36 months"}]
[null,"PRICE ADJUSTMENT FOR INFLATION"]
[null,"Summary"]
[null,"No","Description"]
[null,"A",0,null,null,"Type in description of formula which is carried through below"]
[]
[]
[]
[null,"GENERAL NOTES :"]
[null,"a.","CPA conditions may apply if the contractual duration is to be longer than 12 months. Eskom's default position is for Prices to be Fixed for the first 12 months, then CP be applicable thereafter."]
[null,"b.","References to \"indices\" below have the meaning of \"cost indices or reference prices\",  unless otherwise stated."]
[null,null,"Where historical information is applicable as requested below, internet address references which are accessible to the"]
[null,"c.","general public may be submitted instead, with the specific electronic route and web page reflecting the applicable data."]
[null,"d.","Each formula is related to one unique currency. Mixing of currencies in a specific formula is not acceptable."]
[null,"CPA FORMULA REQUIREMENTS :"]
[null,"i.","Formulae must be linked to independent cost indices or other benchmarks (\"reference prices\") and must be clearly and"]
[null,null,"completely defined. The source must be a recognised statistical publishing source and must not be in-house indices."]
[null,"ii.","Local Indices: Where local indices other than SEIFSA or StatsSA are specified, the tenderer is to submit 5 years' historical data"]
[null,null,"for such indices.  Note that the Contractor must ensure that indices are published and recommended by the \"Source\" as"]
[null,null,"applicable to the work involved. For example SEIFSA has terminated the publication of Table E and is replaced by Table E-A and"]
[null,null,"or E-EX and the specific sub breakdown of such must be identified. Also SEIFSA recommends utilisation of Table L-2 for road"]
[null,null,"transport rather than Table L-1.  "]
[null,"iii.","Foreign Price Adjustments: In the case of foreign price adjustments, the Contractor is to submit 5 years' historical data for the"]
[null,null,"tendered indices.  Where a formula is linked to indices in a country, payment of the amounts for that formula must be in the "]
[null,null,"currency of the same country.  A formula may not be linked to indices of more than one country."]
[null,"iv.","Commodity Price Linked Payments: The reference price is considered as the base price (index) for purpose of the CPA formula"]
[null,null,"and is incuded in the applicable tables below and must be in the currency in which the CPA will be payable.  The exchange"]
[null,null,"rate applied to convert the base price in a foreign currency into that of the currency of the formula must also be indicated in"]
[null,null,"the tables below if the price is not in the same currency as the applicable formula.. ie exposure to the movement in a"]
[null,null,"reference price is in the same currency as that of the CPA formula.  The Contractor is to submit 5 years' historical price data"]
[null,null,"for such commodity, "]
[null,"v.","London Metal Exchange (LME) Prices: For metals traded on the LME, the tonnage will be required before contract award in"]
[null,null,"order for Eskom to hedge the metal price fluctuations.  This applies also for prices linked to local indices or reference prices. "]
[null,null,"Though these metals are traded in US$, prices are daily quoted in various other currencies. "]
[null,null,"The LME price in the currency of the formula must apply and thus not the US$ unless the amount payable in terms of the"]
[null,null,"formula is US$.  Refer to the \"LME\" Sheet in this file for more detail regarding this aspect.  By indicating any of these metals in"]
[null,null,"the formulae below, the contractor declares that neither he nor any other body avails or will avail of forward price and/or"]
[null,null,"currency cover for the metal(s).  "]
[null,"vi.","CPA Base Date: The CPA base date for calculating price movements is the Base Date as defined in the Particular Conditions,"]
[null,null,"Clause 1.1.3.1. For indices or reference prices published as at certain dates, and where such a date is not the Base Date, the"]
[null,null,"latest date for which it is published before the Base Date will be considered as the Base Date index or reference price.  In"]
[null,null,"instances where the figure or value is not as at the Base Date or considered as the Base Date index or reference price as"]
[null,null,"explained herein, the date, figure or value as well as the reason for the deviation must be clearly separately stated and must"]
[null,null,"be realistic for purposes of the price adjustment. "]
[null,"vii.","Period for Movement in Indices: The period for which the movement in indices or reference prices is considered, is the period"]
[null,null,"until the last day of the month prior to the  month in which the work in question was executed or completed (or in which an"]
[null,null,"event or activity for which the adjustment applies, took place).  For indices or reference prices published as at certain dates,"]
[null,null,"and where such a date is not the last day of the month prior to the month in which the work was executed or completed (or an"]
[null,null,"event or activity took place),  then latest date for which the indices or price references are published before the last day of the"]
[null,null,"month prior to the execution or completion of work (or an event or activity took place) is considered as the last day index"]
[null,null,"or reference price of the month prior to execution or completion of work (or event or activity). "]
[null,"viii.","Proportions/weighting/coefficients/base reference in CPA Formulae: The fixed portion of each formula, not subject to inflation,"]
[null,null,"is at least 15% and contractors may submit higher fixed portion percentages.  The indices or other benchmarks and their"]
[null,null,"proportions in the formula must be realistic and relative to the applicable work. The fixed portion and other proportions must add"]
[null,null,"up to 100%."]
[null,"ix.","Base Index or Reference Price :   The base index or reference price must be inserted in the appropriate column"]
[null,"FORMULA No:"]
[null," A ",{"$nulls":6},"Exchange rate for converting base reference price (eg US$ LME price) to the currency of this formula"]
[null,"Index","Proportion / Coefficient / Weight / Base reference price","Description / Scope of Index (eg Labour)","Title/Definition : Linked to the index, e.g., Table C3, All hourly paid employees.  Must be completely defined","Source of Index ((indices prepared by (e.g. SEIFSA, StatsSA, LME)","Base month for CPA if not Base Date as defined (See Note vi above)","Formula Currency Code","Currency Code","Exchange Rate Currency 1,00 =","Historical Data provided (Yes/No/Internet address)"]
[null,"A1"]
[null,"A2"]
[null,"A3"]
[null,"A4"]
[null,"A5"]
[null,"A6",{"v":0.15,"d":"0.150"},"Fixed Non-adjustable (0.15 minimum)"]
[null,null,{"$f":"SUM(C63:C68)","v":{"v":0.15,"d":"0.150"}},"Total"]